bitfinex-derivatives/quotes_BNBF0:USTF0_20250510
["timestamp","ask_amount","ask_price","bid_price","bid_amount"]
[1746864066923,0.24463916,663.48,660.89,0.27745587]
[1746864067124,1.95432511,663.45,660.94,0.95707123]
[1746864067625,0.24463916,663.44,660.95,0.27745587]
[1746864067924,0.24463916,663.44,660.96,0.27745587]
[1746864068226,0.24463916,663.44,660.97,0.27745587]
[1746864068524,0.24463916,663.44,660.95,0.27745587]
[1746864070222,0.24463916,663.48,660.93,0.27745587]
[1746864071828,0.24463916,663.48,660.9,0.27745587]
[1746864073427,0.24463916,663.48,660.91,0.434]
[1746864073732,0.24463916,663.48,660.92,0.27745587]
[1746864074628,0.24463916,663.48,661.04,0.30255355]
[1746864074825,0.30144543,663.47,661.04,0.30255355]
[1746864075128,0.24463916,663.46,661.05,0.27745587]
[1746864076534,0.30144543,663.47,661.04,0.30255355]
[1746864076834,0.26276843,663.45,661.04,0.30255355]
[1746864077036,0.26276843,663.45,661.05,0.54026874]
[1746864077330,0.24463984,663.44,661.06,0.2774894]
[1746864078531,0.24463984,663.43,661.07,0.2774894]
[1746864078935,0.24463984,663.42,661.08,0.2774894]
[1746864079133,0.24463984,663.41,661.09,0.2774894]
[1746864079439,0.24463984,663.4,661.1,0.2774894]
[1746864079642,0.50740232,663.4,661.1,0.2774894]
[1746864079938,0.26276248,663.4,661.11,0.2774894]
[1746864080141,0.24463984,663.39,661.11,0.2774894]
[1746864080644,0.24463984,663.39,661.08,0.2774894]
[1746864081544,0.26276248,663.4,661.07,0.26276248]
[1746864081839,0.24460088,663.39,661.08,0.27741725]
[1746864082143,0.26272082,663.39,661.09,0.27741725]
[1746864082444,0.24460088,663.38,661.1,0.27741725]
[1746864082944,0.24460088,663.38,661.11,0.27741725]
[1746864083345,0.24460088,663.38,661.12,0.27741725]
[1746864083641,0.24460088,663.38,661.13,0.27741725]
[1746864083941,0.24460088,663.38,661.14,0.27741725]
[1746864084345,0.24460088,663.38,661.15,0.27741725]
[1746864084645,0.30144543,663.47,661.04,0.30255355]
[1746864084944,0.2445739,663.46,661.05,0.27739002]
[1746864085145,0.30144543,663.47,661.04,0.30255355]
[1746864085541,0.30144543,663.47,661.05,0.54012094]
[1746864085542,0.50730482,663.46,661.05,0.54012094]
[1746864085841,0.24457309,663.45,661.06,0.27738921]
[1746864086345,0.24457309,663.45,661.07,0.27738921]
[1746864086645,0.24457309,663.45,661.08,0.27738921]
[1746864087144,0.24457309,663.45,661.09,0.27738921]
[1746864087546,0.24457309,663.45,661.1,0.27738921]
[1746864087850,0.24457309,663.45,661.11,0.27738921]
[1746864088042,0.24457309,663.45,661.12,0.27738921]
[1746864088742,0.24457309,663.45,661.13,0.27738921]
[1746864089048,0.26273173,663.46,661.05,0.26273173]
[1746864089343,0.24456328,663.45,661.11,0.95707123]
[1746864089652,0.24456328,663.45,661.12,0.27737931]
[1746864090144,0.24456328,663.45,661.13,0.27737931]
[1746864090549,0.24456328,663.45,661.14,0.27737931]
[1746864090947,0.24456328,663.46,661.15,0.27737931]
[1746864091147,0.26268612,663.44,661.15,0.27737931]
[1746864091343,0.26268612,663.44,661.16,0.27737931]
[1746864091545,0.26268612,663.44,661.26,0.95707123]
[1746864091745,0.24456328,663.43,661.26,0.95707123]
[1746864091949,0.24456328,663.43,661.27,0.27737931]
[1746864092449,0.26268612,663.44,661.28,0.27737931]
[1746864092648,0.26268612,663.44,661.28,0.84437931]
[1746864092843,0.26268612,663.44,661.29,0.27737931]
[1746864093048,0.26268612,663.44,661.28,0.567]
[1746864093449,0.26268612,663.44,661.29,0.2772039]
[1746864094152,0.26268612,663.44,661.46,0.95707123]
[1746864094552,0.26268612,663.44,661.47,0.2772039]
[1746864095250,0.26268612,663.44,661.46,0.95707123]
[1746864095549,0.26268612,663.44,661.47,0.27717132]
[1746864095950,0.26268612,663.44,661.48,0.27717132]
[1746864096450,0.26268612,663.44,661.49,0.27717132]
[1746864096652,0.30143634,663.49,661.49,0.27717132]
[1746864096849,0.30143634,663.49,661.5,0.27717132]
[1746864097045,0.30143634,663.49,661.51,0.27717132]
[1746864097245,0.26241276,663.48,661.51,0.27717132]
[1746864097446,0.26241276,663.48,661.29,0.27717132]
[1746864097646,0.26241276,663.48,661.39,0.30239344]
[1746864098348,0.26241276,663.48,661.4,0.27717132]
[1746864099651,0.30143634,663.49,661.4,0.27717132]
[1746864099853,0.30143634,663.49,661.39,0.30239344]
[1746864100149,0.30143634,663.49,661.4,0.27719629]
[1746864100555,0.26239891,663.48,661.4,0.27719629]
[1746864101051,0.26239891,663.48,661.41,0.27719629]
[1746864101554,0.26239891,663.48,661.4,0.27719629]
[1746864102057,0.24448909,663.47,661.4,0.27719629]
[1746864102862,0.24448909,663.48,661.4,0.27719629]
[1746864103155,0.26263061,663.46,661.5,0.30234315]
[1746864103552,0.24448909,663.45,661.51,0.27719629]
[1746864103869,0.26263061,663.46,661.5,0.30234315]
[1746864104153,0.24450151,663.45,661.51,0.27731704]
[1746864106062,0.26261971,663.44,661.51,0.27731704]
[1746864106460,0.26261971,663.44,661.53,0.30232944]
[1746864106660,0.24450151,663.43,661.53,0.30232944]
[1746864106957,0.24450151,663.43,661.54,0.27731704]
[1746864109163,0.2626425,663.42,661.54,0.27731704]
[1746864109665,0.24450151,663.41,661.54,0.27731704]
[1746864112269,0.26266827,663.4,661.54,0.27731704]
[1746864112965,0.24450151,663.39,661.54,0.27731704]
[1746864114170,0.24450151,663.39,661.55,0.349]
[1746864114372,0.24450151,663.39,661.56,0.27731704]
[1746864115071,0.24450151,663.48,661.56,0.27731704]
[1746864115372,0.26265439,663.38,661.56,0.27731704]
[1746864115667,0.24450151,663.48,661.56,0.27731704]
[1746864115872,0.24450151,663.37,661.58,0.30230659]
[1746864116067,0.24450151,663.48,661.59,0.27731704]
[1746864116274,0.2626653,663.36,661.59,0.27731704]
[1746864116474,0.24450151,663.48,661.59,0.27731704]
[1746864116871,0.26266332,663.35,661.59,0.27731704]
[1746864117373,0.24450151,663.34,661.59,0.27731704]
[1746864118279,0.26266332,663.33,661.61,0.30229289]
[1746864118776,0.24450151,663.32,661.62,0.27731704]
[1746864119976,0.24450151,663.32,661.64,0.30227918]
[1746864120576,0.24450151,663.32,661.65,0.27731704]
[1746864121571,0.24450151,663.32,661.67,0.30226547]
[1746864121876,0.24450151,663.32,661.68,0.27731704]
[1746864123172,0.24450151,663.32,661.7,0.30225177]
[1746864123478,0.24450151,663.32,661.71,0.27731704]
[1746864123675,0.24450151,663.32,661.73,0.30223807]
[1746864124075,0.24450151,663.48,661.74,0.27731704]
[1746864124277,0.26265241,663.31,661.74,0.27731704]
[1746864124478,0.26265241,663.31,661.76,0.30222437]
[1746864124678,0.24450151,663.3,661.77,0.27731704]
[1746864124875,0.24450151,663.3,661.79,0.30221067]
[1746864125480,0.24450151,663.3,661.8,0.27731704]
[1746864125680,0.24450151,663.3,661.82,0.30219697]
[1746864126681,0.30143634,663.49,661.82,0.30219697]
[1746864127077,0.24454947,663.48,661.83,0.27736547]
[1746864127680,0.24454947,663.48,661.82,0.30219697]
[1746864127881,0.26258503,663.47,661.82,0.30219697]
[1746864128679,0.24454947,663.46,661.83,0.2773172]
[1746864129479,0.24454947,663.46,661.84,0.523]
[1746864130083,0.24454947,663.46,661.85,0.2773172]
[1746864130483,0.24454947,663.46,661.84,0.523]
[1746864130785,0.24454947,663.46,661.86,0.3021787]
[1746864132985,0.24454947,663.48,661.86,0.3021787]
[1746864133485,0.26261971,663.47,661.86,0.3021787]
[1746864134585,0.24454947,663.46,661.86,0.3021787]
[1746864135889,0.24454947,663.48,661.87,0.27735571]
[1746864136085,0.26261971,663.45,661.89,0.30216501]
[1746864136691,0.24454947,663.44,661.9,0.27735571]
[1746864136991,0.24454947,663.44,661.92,0.30215131]
[1746864139086,0.26261475,663.43,661.93,0.27737602]
[1746864139487,0.24454947,663.42,661.93,0.27737602]
[1746864140191,0.24454947,663.42,661.95,0.30213762]
[1746864141988,0.24454947,663.48,661.95,0.30213762]
[1746864142394,0.26256522,663.47,661.96,0.27730561]
[1746864142594,0.24454947,663.46,661.96,0.27730561]
[1746864143496,0.24454947,663.46,661.97,0.358]
[1746864143998,0.24454947,663.46,661.98,0.27730561]
[1746864144897,0.24454947,663.48,661.98,0.27730561]
[1746864145193,0.26255729,663.45,661.98,0.27730561]
[1746864145699,0.26255729,663.45,661.97,0.358]
[1746864146495,0.26255729,663.45,661.98,0.27719873]
[1746864147300,0.26255729,663.45,661.97,0.358]
[1746864147699,0.30143634,663.49,661.97,0.358]
[1746864148009,0.30143634,663.49,661.98,0.27710985]
[1746864148298,0.26243453,663.48,661.98,0.27710985]
[1746864148899,0.26243453,663.48,661.99,0.455]
[1746864149601,0.26243453,663.48,662.0,0.27710985]
[1746864150701,0.30143634,663.49,662.0,0.27710985]
[1746864151299,0.26248996,663.47,662.0,0.27710985]
[1746864153401,0.24444626,663.46,662.0,0.27710985]
[1746864153901,0.26248996,663.47,661.99,0.455]
[1746864156701,0.30143634,663.49,661.99,0.455]
[1746864157103,0.26238704,663.48,661.99,0.455]
[1746864157702,0.24442539,663.47,662.0,0.27724007]
[1746864160102,0.24442539,663.48,662.0,0.27724007]
[1746864160496,0.26253154,663.46,662.0,0.27724007]
[1746864160802,0.24442539,663.45,662.0,0.27724007]
[1746864163007,0.24442539,663.48,662.0,0.27724007]
[1746864163200,0.26251966,663.44,662.0,0.27724007]
[1746864163806,0.24442539,663.43,662.0,0.27724007]
[1746864165109,0.26251966,663.44,662.0,0.27724007]
[1746864166107,0.24439027,663.43,662.0,0.27724007]
[1746864169106,0.24439027,663.48,662.0,0.27724007]
[1746864169508,0.26251966,663.42,662.0,0.27724007]
[1746864169803,0.24439027,663.41,662.0,0.27724007]
[1746864170108,0.26251966,663.42,662.0,0.27724007]
[1746864171009,0.26251966,663.42,661.99,0.455]
[1746864171310,0.26251966,663.42,662.0,0.27718549]
[1746864171708,0.30143634,663.49,662.0,0.27718549]
[1746864171907,0.24436041,663.48,662.0,0.27718549]
[1746864172410,0.26248996,663.47,662.0,0.27718549]
[1746864173205,0.26248996,663.47,661.99,0.71748996]
[1746864173812,0.26248996,663.47,662.0,0.27715031]
[1746864174714,0.30143634,663.49,662.0,0.27715031]
[1746864175412,0.26239496,663.48,662.0,0.27715031]
[1746864175812,0.26239496,663.48,662.01,0.27715031]
[1746864176111,0.26239496,663.48,662.02,0.27715031]
[1746864176310,0.26239496,663.48,662.0,0.27715031]
[1746864177713,0.30143634,663.49,662.0,0.27715031]
[1746864178211,0.26248996,663.47,662.0,0.27715031]
[1746864178515,0.26248996,663.47,662.01,0.27715031]
[1746864178910,0.26248996,663.47,662.0,0.27715031]
[1746864179215,0.26248996,663.47,662.01,0.27715031]
[1746864179514,0.26248996,663.47,662.0,0.27715031]
[1746864180713,0.30143634,663.49,662.0,0.27715031]
[1746864181219,0.26230694,663.48,662.0,0.27715031]
[1746864181919,0.26230694,663.48,662.01,0.27715031]
[1746864182320,0.24433446,663.47,662.02,0.27715031]
[1746864182618,0.24433446,663.47,662.03,0.27715031]
[1746864183320,0.24433446,663.47,662.04,0.27715031]
[1746864183621,0.26230694,663.48,662.05,0.27715031]
[1746864183819,0.30143634,663.49,662.05,0.27715031]
[1746864184019,0.30143634,663.49,662.0,0.27715031]
[1746864184221,0.26248006,663.47,662.01,0.53963037]
[1746864184722,0.26248006,663.47,662.02,0.27715031]
[1746864186219,0.26248006,663.47,662.03,0.406]
[1746864186718,0.26248006,663.47,662.04,0.27715031]
[1746864188025,0.26248006,663.47,662.05,0.336]
[1746864188323,0.26248006,663.47,662.06,0.27715031]
[1746864195729,0.30143634,663.49,662.06,0.27715031]
[1746864196124,0.26232573,663.48,662.06,0.27715031]
[1746864196329,0.26232573,663.48,662.05,0.336]
[1746864196631,0.26232573,663.48,662.06,0.27714605]
[1746864198734,0.30143634,663.49,662.06,0.27714605]
[1746864199135,0.26232869,663.48,662.06,0.27714605]
[1746864201636,0.30143634,663.49,662.06,0.27714605]
[1746864202137,0.26247412,663.47,662.06,0.27714605]
[1746864207739,0.30143634,663.49,662.06,0.27714605]
[1746864208338,0.26240683,663.48,662.06,0.27714605]
[1746864209240,0.26240683,663.48,662.05,0.59840584]
[1746864209540,0.26240683,663.48,662.06,0.27721174]
[1746864210240,0.24439578,663.47,662.06,0.27721174]
[1746864211035,0.30143634,663.49,662.05,0.336]
[1746864211439,0.24438969,663.48,662.06,0.2772041]
[1746864211939,0.26248798,663.47,662.06,0.2772041]
[1746864212341,0.24438969,663.46,662.06,0.2772041]
[1746864214041,0.24438969,664.58,662.06,0.2772041]
[1746864214442,1.95432511,664.24,662.06,0.2772041]
[1746864214941,0.24438969,664.23,662.06,0.2772041]
[1746864217443,0.24438969,664.55,662.06,0.2772041]
[1746864217740,0.26232573,664.22,662.06,0.2772041]
[1746864218041,0.24438969,664.21,662.06,0.2772041]
[1746864220138,0.24438969,664.86,662.06,0.2772041]
[1746864220338,0.26229607,664.2,662.2,0.30202355]
[1746864220741,0.24438969,664.19,662.21,0.2772041]
[1746864221142,0.24438969,664.84,662.21,0.2772041]
[1746864221439,0.26228322,664.18,662.21,0.2772041]
[1746864221743,0.24438969,664.84,662.21,0.2772041]
[1746864221744,0.24438969,664.83,662.21,0.2772041]
[1746864221944,0.26228322,664.17,662.21,0.2772041]
[1746864222139,0.50667291,664.17,662.21,0.2772041]
[1746864222343,0.24438969,664.17,662.21,0.2772041]
[1746864222544,0.50667983,664.16,662.21,0.2772041]
[1746864222741,0.24438969,664.15,662.21,0.2772041]
[1746864225740,0.24438969,664.15,662.22,0.425]
[1746864226141,0.26231584,664.14,662.22,0.425]
[1746864226547,0.24438969,664.13,662.23,0.27713809]
[1746864227347,0.24438969,664.13,662.25,0.30200075]
[1746864228547,0.24438969,664.13,662.26,0.27716658]
[1746864228848,0.24438969,664.12,662.26,0.27716658]
[1746864229347,0.24438969,664.11,662.26,0.27716658]
[1746864229846,0.24438969,664.13,662.26,0.27716658]
[1746864231448,0.24438969,664.13,662.25,0.30200075]
[1746864231449,0.26231584,664.14,662.25,0.30200075]
[1746864231851,0.24433507,664.13,662.26,0.27714896]
[1746864232148,0.26236726,664.13,662.26,0.27714896]
[1746864232650,0.24433507,664.12,662.26,0.27714896]
[1746864233849,0.24433507,664.12,662.27,0.408]
[1746864234350,0.24433507,664.12,662.28,0.27714896]
[1746864234550,0.24433507,664.12,662.3,0.30197795]
[1746864235150,0.24433507,664.47,662.3,0.30197795]
[1746864235347,0.26236232,664.11,662.3,0.30197795]
[1746864235650,0.24433507,664.46,662.3,0.30197795]
[1746864235856,0.24433507,664.1,662.3,0.30197795]
[1746864236054,0.24433507,664.47,662.3,0.30197795]
[1746864236354,0.24433507,664.46,662.3,0.30197795]
[1746864236552,0.50669739,664.46,662.3,0.30197795]
[1746864236855,0.24433507,664.45,662.3,0.30197795]
[1746864237354,0.24433507,664.44,662.3,0.30197795]
[1746864237956,0.24433507,664.43,662.31,0.2771458]
[1746864238255,0.24433507,664.42,662.31,0.2771458]
[1746864238556,0.24433507,664.41,662.41,0.3019278]
[1746864238754,1.95432511,664.37,662.41,0.3019278]
[1746864238954,0.24433507,664.36,662.41,0.3019278]
[1746864239256,0.24433507,664.35,662.41,0.3019278]
[1746864239657,0.24433507,664.34,662.41,0.3019278]
[1746864240358,0.24433507,664.33,662.41,0.3019278]
[1746864240854,0.24433507,664.32,662.41,0.3019278]
[1746864241059,1.95432511,664.44,662.41,0.3019278]
[1746864241353,0.26236034,664.31,662.41,0.3019278]
[1746864241761,0.24433156,664.3,662.41,0.3019278]
[1746864243961,0.24433156,664.64,662.41,0.3019278]
[1746864244261,0.26233957,664.29,662.41,0.3019278]
[1746864244871,0.24433156,664.28,662.41,0.3019278]
[1746864245058,0.24433156,664.27,662.41,0.3019278]
[1746864245462,0.24433156,664.26,662.41,0.3019278]
[1746864245862,0.24433156,664.25,662.41,0.3019278]
[1746864246163,0.24433156,664.24,662.41,0.3019278]
[1746864246563,0.24433156,664.28,662.41,0.3019278]
[1746864246959,0.24433156,664.27,662.42,0.27711866]
[1746864247163,0.24433156,664.28,662.41,0.3019278]
[1746864247359,0.24433156,664.28,662.44,0.30191413]
[1746864249367,0.24433156,664.28,662.45,0.382]
[1746864249561,0.24433156,664.28,662.47,0.30190046]
[1746864250466,0.26234649,664.27,662.47,0.30190046]
[1746864250966,0.24433156,664.26,662.47,0.30190046]
[1746864253766,0.24433156,664.25,662.47,0.30190046]
[1746864254467,0.24433156,664.24,662.47,0.30190046]
[1746864254870,0.24433156,664.23,662.47,0.30190046]
[1746864255268,0.24433156,664.22,662.47,0.30190046]
[1746864255566,0.26234649,664.27,662.47,0.30190046]
[1746864255567,0.24433156,664.21,662.47,0.30190046]
[1746864255866,0.24433156,664.2,662.47,0.30190046]
[1746864256167,0.24433156,664.19,662.47,0.30190046]
[1746864256566,0.24433156,664.18,662.47,0.30190046]
[1746864256866,0.24433156,664.17,662.47,0.30190046]
[1746864257469,0.24433156,664.16,662.47,0.30190046]
[1746864257766,0.24433156,664.15,662.47,0.30190046]
[1746864258066,0.24433156,664.14,662.47,0.30190046]
[1746864258362,0.24433156,664.13,662.47,0.30190046]
[1746864258764,0.24433156,664.2,662.47,0.30190046]
[1746864258967,1.95432511,664.21,662.47,0.30190046]
[1746864259164,0.24441847,664.2,662.47,0.30190046]
[1746864260472,1.95432511,664.16,662.47,0.30190046]
[1746864260869,0.24441847,664.15,662.47,0.30190046]
[1746864261373,0.24441847,664.14,662.47,0.30190046]
[1746864261671,0.24441847,664.13,662.47,0.30190046]
[1746864262173,0.24441847,664.12,662.47,0.30190046]
[1746864262672,0.24441847,664.15,662.47,0.30190046]
[1746864262972,0.24441847,664.14,662.47,0.30190046]
[1746864263274,0.24441847,664.13,662.47,0.30190046]
[1746864263569,0.24441847,664.12,662.47,0.30190046]
[1746864263774,0.24441847,664.11,662.47,0.30190046]
[1746864264174,0.24441847,664.1,662.48,0.486]
[1746864264473,0.24441847,664.09,662.48,0.486]
[1746864264769,0.24441847,664.08,662.48,0.486]
[1746864265078,0.24441847,664.18,662.48,0.486]
[1746864265578,0.24441847,664.17,662.48,0.486]
[1746864265972,0.24441847,664.16,662.48,0.486]
[1746864266179,0.24441847,664.15,662.48,0.486]
[1746864266474,0.24441847,664.14,662.48,0.486]
[1746864266878,0.24441847,664.13,662.48,0.486]
[1746864267179,0.24441847,664.12,662.48,0.486]
[1746864267676,0.24441847,664.11,662.48,0.486]
[1746864267877,0.24441847,664.1,662.48,0.486]
[1746864268182,0.24441847,664.21,662.48,0.486]
[1746864268480,0.2623821,664.09,662.48,0.486]
[1746864268680,0.24441847,664.2,662.48,0.486]
[1746864268980,0.24441847,664.19,662.48,0.486]
[1746864269382,0.24441847,664.18,662.48,0.486]
[1746864269677,0.24441847,664.17,662.48,0.486]
[1746864270083,0.24441847,664.16,662.48,0.486]
[1746864270284,0.50679265,664.16,662.48,0.486]
[1746864270483,0.24441847,664.15,662.48,0.486]
[1746864270784,0.24441847,664.14,662.48,0.486]
[1746864271082,0.24441847,664.13,662.48,0.486]
[1746864271483,0.24441847,664.12,662.48,0.486]
[1746864271682,0.50679562,664.12,662.48,0.486]
[1746864271882,0.24441847,664.11,662.48,0.486]
[1746864272182,0.24441847,664.1,662.48,0.486]
[1746864272582,0.24441847,664.09,662.48,0.486]
[1746864272985,0.24441847,664.08,662.48,0.486]
[1746864273283,0.24441847,664.07,662.48,0.486]
[1746864273580,0.24441847,664.06,662.48,0.486]
[1746864273983,0.24441847,664.05,662.48,0.486]
[1746864274285,0.24441847,664.04,662.48,0.486]
[1746864274486,0.26237122,664.05,662.48,0.486]
[1746864274683,0.2443566,664.04,662.48,0.486]
[1746864277790,0.26237122,664.05,662.48,0.486]
[1746864278281,0.24428906,664.04,662.48,0.486]
[1746864278484,0.24428906,664.04,662.49,0.27709524]
[1746864279982,1.95432511,664.26,662.48,0.486]
[1746864280281,0.2442662,664.25,662.49,0.27707967]
[1746864280587,0.2442662,664.25,662.5,0.379]
[1746864280986,0.2442662,664.49,662.51,0.27707967]
[1746864281185,0.26229113,664.24,662.51,0.27707967]
[1746864281582,0.2442662,664.23,662.51,0.27707967]
[1746864281887,0.2442662,664.22,662.51,0.27707967]
[1746864282388,0.2442662,664.21,662.51,0.27707967]
[1746864282587,0.2442662,664.2,662.51,0.27707967]
[1746864282889,0.2442662,664.19,662.51,0.27707967]
[1746864283085,0.50655634,664.19,662.51,0.27707967]
[1746864283388,0.2442662,664.18,662.51,0.27707967]
[1746864285290,0.26229014,664.19,662.5,0.379]
[1746864285590,0.24426608,664.18,662.51,0.27707933]
[1746864286489,0.26231189,664.17,662.51,0.27707933]
[1746864286890,0.50657797,664.17,662.51,0.27707933]
[1746864287184,0.24426608,664.16,662.51,0.27707933]
[1746864287890,0.24426608,664.16,662.5,0.379]
[1746864289193,0.26228421,664.15,662.5,0.379]
[1746864289793,0.24426608,664.14,662.5,0.379]
[1746864292296,0.26234649,664.13,662.5,0.379]
[1746864292493,0.24426608,664.12,662.5,0.379]
[1746864293295,0.26234649,664.13,662.5,0.379]
[1746864293595,0.24441776,664.12,662.5,0.379]
[1746864294296,0.24441776,664.11,662.5,0.379]
[1746864294996,0.24441776,664.1,662.5,0.379]
[1746864295308,1.95432511,664.6,662.5,0.379]
[1746864295619,0.24443486,664.59,662.5,0.379]
[1746864296239,0.24443486,664.58,662.5,0.379]
[1746864296428,0.50683377,664.58,662.5,0.379]
[1746864296625,0.24443486,664.57,662.5,0.379]
[1746864296932,1.95432511,664.14,662.5,0.379]
[1746864297421,0.24443486,664.13,662.5,0.379]
[1746864297624,0.24443486,664.12,662.5,0.379]
[1746864298126,0.24443486,664.11,662.5,0.379]
[1746864298323,0.50685554,664.11,662.5,0.379]
[1746864298525,0.24443486,664.1,662.5,0.379]
[1746864299029,0.24443486,664.09,662.5,0.379]
[1746864299329,0.24443486,664.08,662.5,0.379]
[1746864299631,0.24443486,664.07,662.5,0.379]
[1746864299827,0.24443486,664.06,662.5,0.379]
[1746864300225,0.24443486,664.1,662.5,0.379]
[1746864304231,0.26234946,664.09,662.5,0.379]
[1746864304631,0.24443486,664.08,662.5,0.379]
[1746864305911,0.26234946,664.09,662.5,0.379]
[1746864306116,0.24431409,664.08,662.5,0.379]
[1746864307200,0.26228026,664.07,662.5,0.379]
[1746864307604,0.24431409,664.06,662.5,0.379]
[1746864307803,0.24431409,664.06,662.51,0.379]
[1746864310410,0.24431409,664.84,662.51,0.379]
[1746864310810,0.26230694,664.05,662.51,0.379]
[1746864311106,0.24431409,664.04,662.51,0.379]
[1746864312110,0.26230991,664.03,662.51,0.379]
[1746864312412,0.24431409,664.02,662.51,0.379]
[1746864313013,0.24431409,664.02,662.52,0.427]
[1746864313314,0.24431409,664.84,662.52,0.427]
[1746864313514,0.26229409,664.01,662.52,0.427]
[1746864314013,0.24431409,664.0,662.52,0.427]
[1746864314310,0.26229409,664.01,662.52,0.427]
[1746864314815,0.24432692,664.0,662.52,0.427]
[1746864315512,0.24432692,663.99,662.52,0.427]
[1746864315911,0.24432692,663.98,662.52,0.427]
[1746864316115,0.50661508,663.98,662.52,0.427]
[1746864316310,0.24432692,663.97,662.52,0.427]
[1746864316514,0.24432692,663.96,662.52,0.427]
[1746864316809,0.24432692,663.97,662.52,0.427]
[1746864317215,0.26228816,663.98,662.52,0.427]
[1746864317416,0.24429243,663.96,662.52,0.427]
[1746864317812,0.24429243,663.97,662.52,0.427]
[1746864319213,0.24429243,664.84,662.52,0.427]
[1746864319412,0.26228816,663.96,662.52,0.427]
[1746864319817,0.24429243,663.95,662.52,0.427]
[1746864322122,0.262302,663.94,662.52,0.427]
[1746864322323,0.24429243,663.93,662.52,0.427]
[1746864323621,0.24429243,663.93,662.53,0.343]
[1746864328424,0.24429243,663.92,662.53,0.343]
[1746864328921,0.24429243,663.91,662.53,0.343]
[1746864329325,0.24429243,663.9,662.53,0.343]
[1746864329724,0.24429243,663.89,662.53,0.343]
[1746864330126,0.24429243,663.88,662.53,0.343]
[1746864330427,0.24429243,663.93,662.53,0.343]
[1746864334333,0.24429243,664.0,662.53,0.343]
[1746864334532,0.26237221,663.92,662.53,0.343]
[1746864334832,0.24429243,663.91,662.53,0.343]
[1746864335429,0.26237221,663.9,662.53,0.343]
[1746864336337,0.24429243,663.89,662.53,0.343]
[1746864337239,0.26232968,663.88,662.53,0.343]
[1746864338034,0.24429243,663.87,662.53,0.343]
[1746864344241,0.26232968,663.88,662.53,0.343]
[1746864344543,0.24429412,663.87,662.53,0.343]
[1746864349246,0.26241573,663.86,662.53,0.343]
[1746864349750,0.24429412,663.85,662.53,0.343]
[1746864350847,0.24429412,663.85,662.55,0.30186401]
[1746864352347,0.26238605,663.84,662.55,0.30186401]
[1746864352646,0.24429412,663.83,662.55,0.30186401]
[1746864355047,0.24429412,664.27,662.55,0.30186401]
[1746864355347,0.26238605,663.82,662.55,0.30186401]
[1746864355947,0.24429412,663.81,662.55,0.30186401]
[1746864356549,0.26238605,663.82,662.55,0.30186401]
[1746864356949,0.24400922,663.81,662.55,0.30186401]
[1746864358049,0.24400922,664.02,662.55,0.30186401]
[1746864358250,2.19383835,664.02,662.55,0.30186401]
[1746864358443,2.19383835,664.02,662.56,0.44]
[1746864358643,0.24400922,664.01,662.58,0.30185034]
[1746864358950,0.24400922,664.0,662.58,0.30185034]
[1746864359348,0.50641803,663.99,662.58,0.30185034]
[1746864359751,0.24400922,663.98,662.58,0.30185034]
[1746864359944,0.24400922,663.97,662.58,0.30185034]
[1746864360246,1.94982913,663.92,662.58,0.30185034]
[1746864360850,0.24400922,663.91,662.58,0.30185034]
[1746864363848,0.24400922,663.98,662.58,0.30185034]
[1746864364846,0.26240881,663.99,662.58,0.30185034]
[1746864365245,0.24395099,663.98,662.58,0.30185034]
[1746864367451,0.26240881,663.99,662.58,0.30185034]
[1746864367746,0.24398585,663.98,662.58,0.30185034]
[1746864368046,0.26240881,663.99,662.58,0.30185034]
[1746864368452,0.24399598,663.98,662.58,0.30185034]
[1746864370253,0.26235045,663.97,662.58,0.30185034]
[1746864370652,0.24399598,663.96,662.58,0.30185034]
[1746864373254,0.24399598,664.18,662.58,0.30185034]
[1746864373455,0.26235243,663.95,662.58,0.30185034]
[1746864373656,0.24399598,663.94,662.58,0.30185034]
[1746864373850,0.24399598,663.94,662.59,0.372]
[1746864374052,0.24399598,663.94,662.61,0.30183667]
[1746864374555,0.26236034,663.93,662.61,0.30183667]
[1746864374954,0.24399598,663.92,662.61,0.30183667]
[1746864375556,0.26236034,663.93,662.61,0.30183667]
[1746864375857,1.94982913,664.12,662.61,0.30183667]
[1746864376459,0.26235836,664.11,662.61,0.30183667]
[1746864377160,0.24401748,664.1,662.61,0.30183667]
[1746864379157,0.24401748,664.31,662.61,0.30183667]
[1746864379462,0.26231881,664.09,662.61,0.30183667]
[1746864379762,0.24401748,664.3,662.61,0.30183667]
[1746864380056,0.24401748,664.08,662.61,0.30183667]
[1746864380461,0.24401748,664.31,662.61,0.30183667]
[1746864380956,0.2623544,664.3,662.61,0.30183667]
[1746864381356,0.24401748,664.29,662.61,0.30183667]
[1746864385257,0.26231881,664.28,662.61,0.30183667]
[1746864385863,0.24401748,664.27,662.61,0.30183667]